bitfinex/quotes_SOLUSD_20250525
["timestamp","ask_amount","ask_price","bid_price","bid_amount"]
[1748188563458,25.90443107,169.91,169.88,35.24]
[1748188563658,25.90443107,169.91,169.88,61.24]
[1748188565168,25.90443107,169.92,169.88,61.24]
[1748188565473,25.90443107,169.93,169.89,18.79181043]
[1748188565681,7.8608,169.99,169.89,18.79181043]
[1748188565862,25.90443107,169.94,169.89,237.89181043]
[1748188566662,25.90443107,169.93,169.89,237.89181043]
[1748188567578,25.90443107,169.9,169.89,219.24216157]
[1748188567756,25.90443107,169.9,169.89,245.12216157]
[1748188568161,25.90443107,169.91,169.89,245.12216157]
[1748188568679,25.90443107,169.9,169.89,209.74]
[1748188568884,25.90443107,169.9,169.89,244.98]
[1748188569382,25.90443107,169.91,169.89,244.98]
[1748188572788,25.90443107,169.9,169.89,244.98]
[1748188572988,25.90443107,169.9,169.89,209.74]
[1748188573172,25.90443107,169.9,169.89,244.98]
[1748188574190,6.2368,169.91,169.89,244.98]
[1748188574390,25.90443107,169.9,169.89,244.98]
[1748188576287,25.90443107,169.9,169.89,162.08]
[1748188579095,25.90443107,169.9,169.89,126.84]
[1748188579273,25.90443107,169.9,169.89,162.08]
[1748188582171,25.90443107,169.9,169.89,244.98]
[1748188587679,25.90443107,169.9,169.89,209.74]
[1748188587899,25.90443107,169.9,169.89,244.98]
[1748188588086,25.90443107,169.9,169.89,126.84]
[1748188588286,1.624,169.92,169.89,162.08]
[1748188588502,25.90443107,169.9,169.89,162.08]
[1748188589802,1.624,169.92,169.89,162.08]
[1748188589988,25.90443107,169.9,169.89,162.08]
[1748188591002,51.80886214,169.9,169.89,126.84]
[1748188591196,25.90443107,169.9,169.89,162.08]
[1748188591587,25.90443107,169.9,169.89,126.84]
[1748188591782,25.90443107,169.9,169.89,162.08]
[1748188592191,32.0002,169.95,169.89,162.08]
[1748188592697,25.90443107,169.92,169.89,162.08]
[1748188593501,25.90443107,169.91,169.89,162.08]
[1748188594299,25.90443107,169.92,169.89,162.08]
[1748188594499,25.90443107,169.93,169.89,162.08]
[1748188594882,25.90443107,169.92,169.89,162.08]
[1748188595398,25.90443107,169.91,169.89,162.08]
[1748188595604,25.90443107,169.9,169.89,162.08]
[1748188596208,25.90443107,169.91,169.89,162.08]
[1748188596693,25.90443107,169.92,169.89,162.08]
[1748188599086,25.90443107,169.92,169.89,244.98]
[1748188599806,25.90443107,169.91,169.89,244.98]
[1748188600008,25.90443107,169.9,169.89,244.98]
[1748188600705,25.90443107,169.9,169.89,209.74]
[1748188600912,25.90443107,169.9,169.89,244.98]
[1748188602418,25.90443107,169.91,169.89,244.98]
[1748188602610,25.90443107,169.92,169.89,244.98]
[1748188606524,25.90443107,169.91,169.89,244.98]
[1748188606909,25.90443107,169.9,169.89,244.98]
[1748188607510,25.90443107,169.9,169.89,209.74]
[1748188607818,25.90443107,169.9,169.89,245.0]
[1748188608802,53.33136214,169.9,169.89,126.84]
[1748188609105,57.69524259,169.9,169.89,126.84]
[1748188609310,64.03814259,169.9,169.89,162.1]
[1748188609706,66.21966863,169.9,169.89,162.1]
[1748188609906,26.0,169.89,169.86,84.6]
[1748188610218,26.0,169.88,169.87,35.26]
[1748188610829,28.18152604,169.88,169.8,82.9]
[1748188611122,28.18152604,169.88,169.81,35.26]
[1748188611326,25.90443107,169.82,169.81,35.26]
[1748188612524,25.90443107,169.82,169.77,108.9]
[1748188612728,25.90443107,169.82,169.78,35.26]
[1748188614330,25.90443107,169.83,169.78,35.26]
[1748188614629,25.90443107,169.83,169.79,35.26]
[1748188615306,25.90443107,169.82,169.79,35.26]
[1748188615506,25.90443107,169.81,169.79,118.16]
[1748188616127,25.90443107,169.86,169.8,18.79181043]
[1748188616428,25.90443107,169.86,169.8,101.69181043]
[1748188617710,25.90443107,169.86,169.81,125.06]
[1748188619718,33.8654,169.9,169.81,125.06]
[1748188619906,25.90443107,169.86,169.81,207.96]
[1748188620731,25.90443107,169.84,169.81,207.96]
[1748188622344,25.90443107,169.83,169.81,207.96]
[1748188623023,25.90443107,169.84,169.81,207.96]
[1748188623335,25.90443107,169.86,169.81,207.96]
[1748188623521,33.8654,169.9,169.81,207.96]
[1748188623522,25.90443107,169.84,169.81,207.96]
[1748188623722,25.90443107,169.85,169.81,207.96]
[1748188624338,25.90443107,169.84,169.81,207.96]
[1748188626718,25.90443107,169.85,169.81,207.96]
[1748188627338,25.90443107,169.84,169.81,207.96]
[1748188629544,33.8654,169.9,169.81,207.96]
[1748188629742,25.90443107,169.85,169.81,207.96]
[1748188630630,33.8654,169.9,169.81,207.96]
[1748188630835,25.90443107,169.85,169.81,207.96]
[1748188631944,1.5225,169.9,169.83,26.0]
[1748188632245,25.90443107,169.92,169.85,18.79181043]
[1748188632440,7.81,169.94,169.85,18.79181043]
[1748188632633,25.90443107,169.93,169.87,18.79181043]
[1748188632830,25.90443107,169.93,169.88,75.7]
[1748188633445,33.71443107,169.94,169.88,75.7]
[1748188634224,25.90443107,169.93,169.88,75.7]
[1748188636948,25.90443107,169.93,169.88,158.6]
[1748188640039,25.90443107,169.92,169.88,158.6]
[1748188640227,7.81,169.94,169.89,84.6]
[1748188640436,25.90443107,169.9,169.89,84.6]
[1748188640656,25.90443107,169.9,169.89,119.86]
[1748188645251,7.81,169.94,169.89,202.76]
[1748188645505,27.56893107,169.94,169.89,202.76]
[1748188645658,25.90443107,169.94,169.9,18.79181043]
[1748188646469,25.90443107,169.94,169.89,202.76]
[1748188646470,25.90443107,169.92,169.89,202.76]
[1748188647270,25.90443107,169.91,169.89,202.76]
[1748188647658,25.90443107,169.9,169.89,202.76]
[1748188647835,25.90443107,169.9,169.89,119.86]
[1748188652882,25.90443107,169.9,169.89,202.76]
[1748188653367,26.0,169.95,169.89,202.76]
[1748188653575,25.90443107,169.91,169.89,119.86]
[1748188653752,25.90443107,169.91,169.89,202.76]
[1748188654482,4.36200963,169.94,169.89,202.76]
[1748188654780,25.90443107,169.91,169.89,202.76]
[1748188654951,25.90443107,169.92,169.89,202.76]
[1748188655673,25.90443107,169.91,169.89,202.76]
[1748188656351,25.90443107,169.94,169.89,202.76]
[1748188657096,8.0677,169.98,169.89,202.76]
[1748188657269,8.0677,169.98,169.9,18.79181043]
[1748188657463,25.90443107,169.96,169.9,18.79181043]
[1748188657865,25.90443107,169.96,169.9,101.69181043]
[1748188658587,25.90443107,169.95,169.9,101.69181043]
[1748188661365,8.0677,169.98,169.9,83.04216157]
[1748188661366,25.90443107,169.94,169.9,83.04216157]
[1748188662589,8.0677,169.98,169.9,83.04216157]
[1748188662590,25.90443107,169.95,169.9,83.04216157]
[1748188663787,25.90443107,169.96,169.9,83.04216157]
[1748188664790,8.0677,169.98,169.9,83.04216157]
[1748188664963,25.90443107,169.96,169.9,83.04216157]
[1748188665481,25.90443107,169.95,169.9,83.04216157]
[1748188666791,25.90443107,169.93,169.9,82.9]
[1748188667089,25.90443107,169.93,169.91,35.24]
[1748188668087,25.90443107,169.92,169.91,35.24]
[1748188668567,25.90443107,169.93,169.91,35.24]
[1748188668765,25.90443107,169.92,169.9,82.9]
[1748188668966,25.90443107,169.91,169.9,82.9]
[1748188669175,25.90443107,169.91,169.9,118.14]
[1748188671923,34.0677,169.98,169.9,118.14]
[1748188672203,25.90443107,169.94,169.9,118.14]
[1748188676675,25.90443107,169.95,169.9,118.14]
[1748188677498,25.90443107,169.95,169.91,0.14216157]
[1748188677684,25.90443107,169.96,169.91,0.14216157]
[1748188678599,25.90443107,169.96,169.91,83.04216157]
[1748188680413,8.0677,169.98,169.91,83.04216157]
[1748188680611,25.90443107,169.96,169.91,83.04216157]
[1748188680913,25.90443107,169.96,169.92,40.34]
[1748188681903,1.5606,169.98,169.93,0.14216157]
[1748188682214,6.0029,170.02,169.93,0.14216157]
[1748188682215,25.90443107,169.99,169.94,35.24]
[1748188682680,25.90443107,169.98,169.94,35.24]
[1748188682875,25.90443107,169.98,169.94,118.14]
[1748188686115,7.598,170.02,169.94,118.14]
[1748188686400,25.90443107,169.98,169.94,118.14]
[1748188686608,25.90443107,169.98,169.95,84.58]
[1748188691112,7.598,170.02,169.95,167.48]
[1748188691317,25.90443107,169.99,169.95,167.48]
[1748188691685,25.90443107,169.98,169.95,167.48]
[1748188692015,25.90443107,169.96,169.95,167.48]
[1748188692316,25.90443107,169.96,169.95,243.04]
[1748188692491,25.90443107,169.96,169.95,160.14]
[1748188693428,25.90443107,169.96,169.95,124.9]
[1748188693626,25.90443107,169.96,169.95,160.14]
[1748188693825,33.97133107,169.96,169.95,160.14]
[1748188693996,33.97133107,169.96,169.83,147.81097818]
[1748188693997,33.97133107,169.96,169.84,0.14216157]
[1748188694190,25.90443107,169.89,169.85,26.0]
[1748188694398,25.90443107,169.89,169.85,108.9]
[1748188694827,25.90443107,169.92,169.86,18.79181043]
[1748188695124,25.90443107,169.93,169.86,18.79181043]
[1748188695290,11.41865122,169.96,169.88,18.79181043]
[1748188695494,25.90443107,169.93,169.88,18.79181043]
[1748188696097,11.41865122,169.96,169.88,44.79181043]
[1748188696328,8.0669,169.96,169.88,263.89181043]
[1748188696523,30.27071741,169.95,169.88,263.89181043]
[1748188696833,25.90443107,169.94,169.88,263.89181043]
[1748188697501,25.90443107,169.94,169.9,0.14216157]
[1748188697697,25.90443107,169.94,169.91,35.24]
[1748188698124,8.0669,169.96,169.91,35.24]
[1748188698503,1.5094,169.96,169.91,35.24]
[1748188698709,25.90443107,169.95,169.91,35.24]
[1748188699102,25.90443107,169.95,169.91,118.14]
[1748188700236,25.90443107,169.94,169.91,118.14]
[1748188700536,25.90443107,169.92,169.89,124.9]
[1748188700728,25.90443107,169.9,169.89,124.9]
[1748188701023,25.90443107,169.9,169.89,160.14]
[1748188705953,25.90443107,169.9,169.89,243.04]
[1748188706333,25.90443107,169.91,169.89,243.04]
[1748188706509,25.90443107,169.92,169.89,243.04]
[1748188709424,25.90443107,169.93,169.89,243.04]
[1748188710243,1.5094,169.96,169.89,243.04]
[1748188710419,25.90443107,169.93,169.89,243.04]
[1748188710620,25.90443107,169.92,169.89,243.04]
[1748188714523,1.5094,169.96,169.89,243.04]
[1748188714524,1.5094,169.96,169.9,0.14216157]
[1748188714726,1.5094,169.96,169.9,83.04216157]
[1748188714727,27.41383107,169.96,169.9,83.04216157]
[1748188715743,32.11903107,169.97,169.9,83.04216157]
[1748188716036,25.90443107,169.97,169.9,83.04216157]
[1748188716337,25.90443107,169.97,169.9,109.04216157]
[1748188718437,25.90443107,169.97,169.92,0.14216157]
[1748188718744,25.90443107,169.99,169.94,0.14216157]
[1748188718920,25.90443107,169.99,169.95,40.26]
[1748188723123,25.90443107,169.98,169.95,40.26]
[1748188724247,1.5959,170.0,169.95,40.26]
[1748188724546,25.90443107,169.98,169.95,40.26]
[1748188724930,25.90443107,169.99,169.95,40.26]
[1748188725649,25.90443107,169.98,169.95,40.26]
[1748188727221,1.5959,170.0,169.95,40.26]
[1748188727425,25.90443107,169.99,169.95,40.26]
[1748188729048,25.90443107,169.97,169.95,40.26]
[1748188729264,25.90443107,169.96,169.95,40.26]
[1748188729436,25.90443107,169.96,169.95,158.4]
[1748188730539,25.90443107,169.96,169.95,242.96]
[1748188738663,25.90443107,169.96,169.95,160.06]
[1748188738858,27.50033107,170.0,169.95,160.06]
[1748188739064,1.5959,170.0,169.95,160.06]
[1748188739565,27.50033107,170.0,169.95,160.06]
[1748188741442,25.90443107,169.99,169.95,160.06]
[1748188741964,27.50033107,170.0,169.95,160.06]
[1748188743878,27.50033107,170.0,169.96,0.14216157]
[1748188744181,25.90443107,170.01,169.96,101.69181043]
[1748188744470,25.90443107,170.03,169.96,237.89181043]
[1748188744661,27.41603107,170.04,169.96,237.89181043]
[1748188744844,25.90443107,170.03,169.96,237.89181043]
[1748188746066,25.90443107,170.02,169.96,237.89181043]
[1748188747347,4.1930948,170.09,169.96,237.89181043]
[1748188747348,4.1930948,170.09,169.99,26.0]
[1748188747675,25.90443107,170.06,170.0,35.24]
[1748188747858,25.90443107,170.06,170.01,40.16]
[1748188748165,25.90443107,170.05,170.01,40.16]
[1748188748763,25.90443107,170.04,170.01,40.16]
[1748188749551,2.92200704,170.09,170.01,40.16]
[1748188749753,25.90443107,170.05,170.01,40.16]
[1748188750641,53.43193107,170.1,170.01,40.16]
[1748188750842,27.5275,170.1,170.01,40.16]
[1748188751049,25.90443107,170.03,170.01,40.16]
[1748188752170,25.90443107,170.02,170.01,40.16]
[1748188752776,25.90443107,170.02,170.01,159.94]
[1748188754076,25.90443107,170.03,170.01,159.94]
[1748188755979,25.90443107,170.03,170.01,242.84]
[1748188756776,25.90443107,170.02,170.01,242.84]
[1748188759776,25.90443107,170.04,170.01,242.84]
[1748188760973,25.90443107,170.05,170.01,242.84]
[1748188762362,25.90443107,170.06,170.01,242.84]
[1748188764585,30.39558194,170.1,170.02,0.14216157]
[1748188764791,25.90443107,170.07,170.02,83.04216157]
[1748188765082,25.90443107,170.06,170.02,83.04216157]
[1748188770214,1.5275,170.1,170.02,83.04216157]
[1748188770506,27.43193107,170.1,170.04,0.14216157]
[1748188770679,27.43193107,170.1,170.05,35.22]
[1748188771080,25.90443107,170.09,170.05,35.22]
[1748188772715,25.90443107,170.08,170.05,35.22]
[1748188773216,25.90443107,170.07,170.02,245.1]
[1748188773418,25.90443107,170.05,170.03,75.26]
[1748188773714,25.90443107,170.04,170.03,40.04]
[1748188773880,25.90443107,170.04,170.03,158.16]
[1748188776713,25.90443107,170.04,170.03,122.94]
[1748188776889,25.90443107,170.04,170.03,75.26]
[1748188777204,25.90443107,170.04,170.03,40.04]
[1748188777387,27.42403107,170.04,170.03,40.04]
[1748188777705,27.42403107,170.04,170.03,75.26]
[1748188779597,1.5196,170.04,170.03,75.26]
[1748188779785,27.42403107,170.04,170.03,75.26]
[1748188780803,27.42403107,170.04,170.03,40.04]
[1748188780997,27.42403107,170.04,170.03,75.26]
[1748188782298,25.90443107,170.04,170.03,75.26]
[1748188782503,25.90443107,170.04,170.03,158.16]
[1748188784978,25.90443107,170.04,170.03,242.7]
[1748188792196,25.90443107,170.04,170.03,207.48]
[1748188792396,25.90443107,170.04,170.03,242.7]
[1748188792624,28.09306196,170.04,170.03,242.7]
[1748188792914,28.09306196,170.04,170.03,207.48]
[1748188793102,29.75386196,170.04,170.03,242.7]
[1748188794213,29.75386196,170.04,170.03,159.8]
[1748188794716,33.10165468,170.04,170.03,159.8]
[1748188796128,29.75386196,170.04,170.03,159.8]
[1748188797618,2.18863089,170.04,170.03,242.7]
[1748188797926,2.18863089,170.04,170.03,159.8]
[1748188798134,29.25222379,170.06,170.03,159.8]
[1748188798334,25.90443107,170.05,170.03,159.8]
[1748188800042,25.90443107,170.04,170.03,159.8]
[1748188803028,28.09138926,170.04,170.03,159.8]
[1748188804733,25.90443107,170.04,170.03,159.8]
[1748188806235,28.08968605,170.04,170.03,159.7]
[1748188806816,28.08968605,170.04,170.03,84.54]
[1748188807031,80.45912755,170.04,170.03,39.94]
[1748188807229,26.0,170.01,169.9,83.04216157]
[1748188807434,25.90443107,169.96,169.91,75.16]
[1748188807733,25.90443107,169.96,169.91,242.6]
[1748188807910,1.593,170.04,169.94,0.14216157]
[1748188808110,25.90443107,170.0,169.95,35.22]
[1748188808323,25.90443107,169.99,169.95,118.12]
[1748188808917,25.90443107,169.98,169.95,118.12]
[1748188810514,25.90443107,169.97,169.95,118.12]
[1748188811334,6.3451,170.03,169.95,35.22]
[1748188811531,25.90443107,169.97,169.95,35.22]
[1748188812213,25.90443107,170.0,169.96,75.18]
[1748188812414,1.6446,169.99,169.96,75.18]
[1748188812738,25.90443107,169.97,169.96,75.18]
[1748188813033,32.24953107,169.97,169.96,75.18]
[1748188813241,6.3451,169.97,169.96,75.18]
[1748188813431,32.24953107,169.97,169.96,75.18]
[1748188814419,34.42682201,169.97,169.96,39.94]
[1748188814624,34.42682201,169.97,169.91,167.44]
[1748188814625,38.78118034,169.97,169.91,167.44]
[1748188814933,25.90443107,169.92,169.86,82.9]
[1748188815237,25.90443107,169.91,169.86,82.9]
[1748188815740,25.90443107,169.92,169.87,35.24]
[1748188816726,7.9298,169.97,169.88,0.14216157]
[1748188816918,7.9298,169.97,169.88,83.04216157]
[1748188816919,25.90443107,169.96,169.88,83.04216157]
[1748188817323,25.90443107,169.92,169.88,83.04216157]
[1748188817523,25.90443107,169.92,169.89,124.5]
[1748188819317,25.90443107,169.91,169.89,124.5]
[1748188819520,25.90443107,169.92,169.9,35.24]
[1748188820029,25.90443107,169.91,169.9,35.24]
[1748188820231,25.90443107,169.91,169.89,124.5]
[1748188820446,26.0,169.96,169.9,35.24]
[1748188821036,26.0,169.96,169.89,124.5]
[1748188821353,26.0,169.96,169.9,35.24]
[1748188821526,25.90443107,169.91,169.9,35.24]
[1748188822433,25.90443107,169.91,169.89,124.5]
[1748188822642,26.0,169.96,169.9,35.24]
[1748188824045,25.90443107,169.91,169.9,35.24]
[1748188827144,25.90443107,169.91,169.89,124.5]
[1748188827332,25.90443107,169.9,169.89,124.5]
[1748188827534,25.90443107,169.9,169.89,159.74]
[1748188828141,31.95013107,169.9,169.89,124.4]
[1748188828339,31.95013107,169.9,169.89,159.66]
[1748188830953,6.0457,169.9,169.89,159.66]
[1748188831249,31.95013107,169.9,169.89,159.66]
[1748188831548,25.90443107,169.9,169.89,159.66]
[1748188837074,7.592,169.94,169.89,159.66]
[1748188837366,25.90443107,169.97,169.89,242.56]
[1748188838170,7.8681,169.98,169.9,0.14216157]
[1748188838332,1.5104,170.03,169.92,26.0]
[1748188838659,30.09991682,170.01,169.93,35.40216157]
[1748188838857,25.90443107,170.0,169.93,35.40216157]
[1748188840749,25.90443107,169.99,169.94,75.1]
[1748188841549,25.90443107,170.0,169.94,75.1]
[1748188842062,25.90443107,170.02,169.95,0.14216157]
[1748188843168,25.90443107,170.01,169.95,0.14216157]
[1748188843663,1.5104,170.03,169.95,18.79181043]
[1748188843850,25.90443107,170.03,169.95,18.79181043]
[1748188846675,25.90443107,170.03,169.96,26.0]
[1748188846861,25.90443107,170.05,169.98,0.14216157]
[1748188847063,33.6561,170.08,170.0,0.14216157]
[1748188847290,33.56053107,170.08,170.01,39.82]
[1748188848259,25.90443107,170.06,170.01,39.82]
[1748188848468,25.90443107,170.02,170.01,39.82]
[1748188848663,25.90443107,170.02,170.01,75.06]
[1748188849580,7.6561,170.08,170.01,75.06]
[1748188849761,25.90443107,170.05,170.01,75.06]
[1748188852284,8.1312,170.19,170.02,45.37993869]
[1748188852463,25.90443107,170.11,170.05,0.14216157]
[1748188852669,25.90443107,170.11,170.06,35.24]
[1748188852870,25.90443107,170.11,170.07,39.7]
[1748188853473,25.90443107,170.12,170.07,39.7]
[1748188853673,26.92301043,170.19,170.07,39.7]
[1748188853674,8.1312,170.19,170.08,0.14216157]
[1748188853878,25.90443107,170.13,170.07,39.7]
[1748188854188,25.90443107,170.14,170.08,0.14216157]
[1748188854676,25.90443107,170.13,170.08,0.14216157]
[1748188855085,25.90443107,170.14,170.08,0.14216157]
[1748188855280,25.90443107,170.13,170.07,39.7]
[1748188855479,25.90443107,170.08,170.05,26.0]
[1748188855786,27.5995,170.17,170.07,0.14216157]
[1748188855986,25.90443107,170.13,170.07,0.14216157]
[1748188856358,25.90443107,170.12,170.07,0.14216157]
[1748188857284,27.5995,170.17,170.07,81.7]
[1748188857588,25.90443107,170.1,170.08,74.92]
[1748188857777,25.90443107,170.09,170.08,74.92]
[1748188858290,25.90443107,170.11,170.08,74.92]
[1748188859163,25.90443107,170.12,170.08,74.92]
[1748188860081,34.1473,170.17,170.08,74.92]
[1748188860388,25.90443107,170.14,170.08,74.92]
[1748188860567,25.90443107,170.13,170.08,74.92]
[1748188860884,25.90443107,170.12,170.07,26.0]
[1748188861065,25.90443107,170.11,170.08,74.92]
[1748188861271,25.90443107,170.12,170.08,74.92]
[1748188861479,25.90443107,170.13,170.08,74.92]
[1748188862362,25.90443107,170.14,170.08,157.92]
[1748188862678,25.90443107,170.13,170.08,83.0]
[1748188862985,25.90443107,170.11,170.09,74.92]
[1748188863221,25.90443107,170.11,170.1,74.92]
[1748188863482,25.90443107,170.11,170.09,83.0]
[1748188863661,8.1473,170.17,170.1,74.9]
[1748188863863,25.90443107,170.11,170.09,83.0]
[1748188864070,25.90443107,170.1,170.05,83.0]
[1748188864284,25.90443107,170.07,170.06,74.9]
[1748188864866,25.90443107,170.07,170.06,39.68]
[1748188865404,26.0,170.06,169.93,18.79181043]
[1748188865690,25.90443107,169.99,169.95,26.0]
[1748188865860,25.90443107,170.0,169.95,26.0]
[1748188866167,25.90443107,170.02,169.96,26.0]
[1748188866582,25.90443107,170.0,169.97,35.22]
[1748188866764,25.90443107,169.98,169.97,35.22]
[1748188867603,25.90443107,169.99,169.97,124.22]
[1748188867800,25.90443107,169.99,169.97,159.44]
[1748188868089,25.90443107,169.98,169.97,159.44]
[1748188869280,25.90443107,169.98,169.97,124.22]
[1748188869481,25.90443107,169.98,169.97,159.44]
[1748188870175,25.90443107,169.98,169.97,124.22]
[1748188870376,1.6377,170.01,169.97,159.44]
[1748188870584,25.90443107,169.98,169.97,124.22]
[1748188870792,25.90443107,169.98,169.97,159.44]
[1748188872784,25.90443107,169.98,169.97,124.22]
[1748188873099,51.90443107,169.98,169.97,74.92]
[1748188874599,25.90443107,169.98,169.97,74.92]
[1748188875302,27.6377,170.01,169.97,74.92]
[1748188875678,25.90443107,170.0,169.97,74.92]
[1748188876208,27.54213107,170.01,169.97,74.92]
[1748188876787,1.6377,170.01,169.97,74.92]
[1748188876996,6.2593,170.02,169.97,74.92]
[1748188877208,25.90443107,170.02,169.97,74.92]
[1748188878103,25.90443107,169.98,169.97,39.7]
[1748188878287,25.90443107,169.98,169.97,74.94]
[1748188878794,27.55973107,169.98,169.97,74.94]
[1748188879703,25.90443107,169.99,169.97,74.94]
[1748188879907,41.46488068,169.99,169.97,74.94]
[1748188880899,27.6553,170.02,169.97,74.94]
[1748188881074,41.46488068,169.99,169.97,74.94]
[1748188882501,41.46488068,169.98,169.97,74.94]
[1748188883897,41.46488068,169.98,169.93,167.54]
[1748188884103,1.6553,170.02,169.97,39.62]
[1748188884277,27.6553,170.02,169.98,35.24]
[1748188885303,41.46488068,169.99,169.98,35.24]
[1748188885501,41.46488068,169.99,169.97,39.62]
[1748188885679,18.79181043,170.01,169.98,35.24]
[1748188885883,41.46488068,169.99,169.98,35.24]
[1748188889778,26.0,170.0,169.98,35.24]
[1748188889984,41.46488068,169.99,169.98,35.24]
[1748188894098,26.0,169.96,169.93,167.24]
[1748188894410,1.6163,169.95,169.94,74.86]
[1748188895497,1.6163,169.95,169.82,0.14216157]
[1748188895498,26.0,169.92,169.87,84.56]
[1748188895803,20.40811043,169.95,169.88,74.86]
[1748188895991,26.0,169.92,169.88,74.86]
[1748188897012,41.46488068,169.91,169.89,35.24]
[1748188897220,41.46488068,169.9,169.89,35.24]
[1748188898007,41.46488068,169.9,169.87,84.56]
[1748188898189,41.46488068,169.88,169.87,84.56]
[1748188898398,42.99928068,169.88,169.87,159.44]
[1748188900317,42.99928068,169.88,169.87,124.2]
[1748188900495,42.99928068,169.88,169.87,159.46]
[1748188902400,61.79109111,169.88,169.87,124.2]
[1748188902615,61.79109111,169.88,169.87,159.46]
[1748188903123,42.99928068,169.88,169.87,159.46]
[1748188906121,61.79109111,169.88,169.87,159.46]
[1748188906421,26.0,169.85,169.74,26.0]
[1748188906625,41.46488068,169.79,169.75,39.64]
[1748188907425,41.46488068,169.79,169.76,35.26]
[1748188907624,41.46488068,169.79,169.77,84.62]
[1748188907818,41.46488068,169.79,169.78,35.26]
[1748188908124,41.46488068,169.81,169.78,35.26]
[1748188908638,41.46488068,169.8,169.78,35.26]
[1748188908797,41.46488068,169.81,169.78,35.26]
[1748188909001,41.46488068,169.8,169.78,35.26]
[1748188909204,26.0,169.85,169.78,35.26]
[1748188909424,41.46488068,169.8,169.78,35.26]
[1748188910011,41.46488068,169.79,169.77,84.62]
[1748188910203,41.46488068,169.78,169.77,84.62]
[1748188910398,1.6354,169.81,169.77,119.88]
[1748188910603,41.46488068,169.78,169.77,119.88]
[1748188911323,26.0,169.78,169.77,119.88]
[1748188911501,41.46488068,169.79,169.77,119.88]
[1748188911922,6.1881,169.82,169.77,119.88]
[1748188911923,67.46488068,169.84,169.77,119.88]
[1748188912224,41.46488068,169.84,169.77,119.88]
[1748188912615,41.46488068,169.83,169.77,119.88]
[1748188915125,41.46488068,169.83,169.77,202.58]
[1748188915527,41.46488068,169.79,169.77,202.58]
[1748188915830,41.46488068,169.78,169.77,119.88]
[1748188920538,27.6354,169.74,169.56,3.2093]
[1748188920728,41.46488068,169.64,169.57,74.86]
[1748188921028,41.46488068,169.63,169.58,35.28]
[1748188921232,41.46488068,169.63,169.57,39.58]
[1748188921420,41.46488068,169.66,169.58,35.28]
[1748188921621,18.79181043,169.69,169.58,35.28]
[1748188921622,26.0,169.68,169.58,35.28]
[1748188921830,67.46488068,169.68,169.58,35.28]
[1748188922418,67.46488068,169.72,169.61,26.0]
[1748188922622,67.46488068,169.72,169.62,54.07181043]
[1748188922828,41.46488068,169.7,169.63,39.58]
[1748188923019,41.46488068,169.7,169.64,35.28]
[1748188923431,41.46488068,169.69,169.64,35.28]
[1748188923732,41.46488068,169.67,169.65,74.86]
[1748188923916,41.46488068,169.67,169.59,26.14216157]
[1748188924120,41.46488068,169.67,169.6,74.88]
[1748188924615,24.97991043,169.73,169.6,74.88]
[1748188924833,41.46488068,169.68,169.6,74.88]
[1748188925336,41.46488068,169.69,169.6,74.88]
[1748188925542,41.46488068,169.68,169.6,74.88]
[1748188925739,41.46488068,169.67,169.6,74.88]
[1748188926121,41.46488068,169.65,169.6,74.88]
[1748188926318,41.46488068,169.67,169.6,39.6]
[1748188926628,41.46488068,169.68,169.61,35.28]
[1748188927127,26.0,169.7,169.62,35.3]
[1748188927128,41.46488068,169.66,169.62,35.3]
[1748188927320,41.46488068,169.67,169.62,35.3]